Cogmind - Beta 14 @@@ ROGUE MODE // 2024.11.16 @ 13:59:53 Player: BEEEEES Result: Self-destructed Performance ------------- Evolutions (1) 500 Regions Visited (3) 600 Robots Destroyed (33) 165 Value Destroyed (807) 807 Prototype IDs (0) 0 Alien Tech Used (0) 0 Bonus (0) 0 TOTAL SCORE: 2072 Bonus ------- None Cogmind --------- Core Integrity 117/400 Matter 264/300 Energy 100/100 System Corruption 0% Temperature Cool (0) Movement Core (100) Ox1 Location -9/Materials Parts ------- > --- POWER (1) -------- (None) > --- PROPULSION (3) --- (None) > --- UTILITY (3) ------ Small Storage Unit Structural Scanner > --- WEAPON (2) ------- (None) > --- INVENTORY (8) ---- Ion Engine Ion Engine Light Ion Engine Autogun Peak State ------------ > --- POWER ------------ Light Ion Engine > --- PROPULSION ------- Aluminum Leg Aluminum Leg > --- UTILITY ---------- Small Storage Unit Structural Scanner Improved Terrain Scanner > --- WEAPON ----------- Autogun Autogun > --- INVENTORY -------- Ion Engine Aluminum Leg Wheel Wheel Compact Wheel Autogun Grenade Launcher Rocket Launcher [Rating: 13] Favorites ----------- Power Ion Engine Engine Ion Engine Power Core Light Nuclear Core Propulsion Aluminum Leg Leg Aluminum Leg Wheel Wheel Utility Small Storage Unit Device Structural Scanner Storage Small Storage Unit Processor Targeting Computer Weapon Medium Laser Energy Gun Medium Laser Ballistic Gun Autogun Launcher Grenade Launcher Build | -11 -10 -10 -9 ------- Run | Yrd Mat Min Mat Slots Evolved 2 | . . . 2 Power . | . . . . Propulsion 1 | . . . 1 Utility 1 | . . . 1 Weapon . | . . . . Parts Attached 24 | 6 6 . 12 Power 5 | 1 2 . 2 Engine 4 | 1 1 . 2 Core 1 | . 1 . . Reactor . | . . . . Propulsion 7 | 2 1 . 4 Treads . | . . . . Leg 4 | 2 1 . 1 Wheel 3 | . . . 3 Hover . | . . . . Flight . | . . . . Utility 4 | 1 2 . 1 Device 2 | . 1 . 1 Storage 1 | 1 . . . Processor 1 | . 1 . . Hackware . | . . . . Protection . | . . . . Artifact . | . . . . Weapon 8 | 2 1 . 5 Energy Gun 3 | 2 1 . . Energy Cannon . | . . . . Ballistic Gun 3 | . . . 3 Ballistic Cannon . | . . . . Launcher 2 | . . . 2 Special Weapon . | . . . . Impact Weapon . | . . . . Slashing Weapon . | . . . . Piercing Weapon . | . . . . Special Melee Weapon . | . . . . Unidentified Prototypes . | . . . . Parts Lost 14 | . 2 . 12 Power 2 | . 1 . 1 Propulsion 4 | . . . 4 Utility 1 | . . . 1 Weapon 7 | . 1 . 6 Highest Loss Streak 7 | . 1 . 7 To Critical Strikes . | . . . . Average Slot Usage (%) 95 | . 98 100 89 Engine 11 | . 11 14 10 Core 1 | . 2 . . Leg 20 | . 28 28 7 Wheel 7 | . . . 18 Device 13 | . 7 14 20 Storage 12 | . 14 14 11 Processor 2 | . 5 . . Energy Gun 18 | . 27 28 5 Ballistic Gun 5 | . . . 14 Peak Build Rating 13 | 6 9 7 13 Average Rating 8 | 4 7 7 11 On Entrance 5 | . 6 7 7 Naked Turns . | . . . . Heaviest Build 18 | 14 15 13 18 Greatest Support 36 | 20 20 20 36 Greatest Overweight (x) 4 | . . . 4 Average Overweight (x) . | . . . . Largest Inventory Capacity 8 | 8 8 8 8 Average Capacity 7 | 6 8 8 8 Most Carried 8 | 4 8 8 8 Average Carried 6 | 2 6 7 5 Final Capacity 8 | 8 8 8 8 Final Carried 8 | 4 6 8 4 Class Distribution -------------------- 100% | Mutant Dominant Class ---------------- Mutant | -10/Materials Mutant | -10/Mines Mutant | -9/Materials Resources | -11 -10 -10 -9 ----------- Run | Yrd Mat Min Mat Matter Collected 711 | 175 145 . 391 Remotely . | . . . . Salvage Created 912 | . 322 . 590 Parts 73 | . 20 . 53 Haulers Intercepted . | . . . . Recyclers Shooed 1 | . . . 1 Parts Field Recycled . | . . . . Retrieved Matter . | . . . . Parts Self-Destructed . | . . . . Prevented . | . . . . Kills | -11 -10 -10 -9 ------- Run | Yrd Mat Min Mat Combat Hostiles Destroyed 29 | . 11 . 18 Guns 24 | . 11 . 13 AOE 5 | . . . 5 Classes Destroyed 6 | . 2 . 4 Worker 1 | . . . 1 Builder 2 | . . . 2 Mechanic 1 | . . . 1 Swarmer 13 | . 6 . 7 Grunt 13 | . 5 . 8 Sentry 3 | . . . 3 Best Kill Streak 8 | . 4 . 8 Combat Bots Only 6 | . 4 . 6 Max Kills in Single Turn 3 | . 1 . 3 Gunslinging . | . . . . Exploded 3 | . . . 3 Melee . | . . . . Uniques/NPCs Destroyed . | . . . . Combat | -11 -10 -10 -9 -------- Run | Yrd Mat Min Mat Hostile Shots Fired 193 | . 76 . 117 Missed 55 | . 27 . 28 Damage Taken 1668 | . 445 . 1223 Core 377 | . 94 . 283 Absorbed by Shields . | . . . . Core Remaining (%) 81 | 100 . 62 . Volleys Fired 82 | . 31 . 51 Largest 2 | . 2 . 2 Hottest 100 | . 100 . 100 Shots Fired 153 | . 61 . 92 Gun 150 | . 61 . 89 Cannon . | . . . . Launcher 3 | . . . 3 Special . | . . . . Kinetic 80 | . . . 80 Thermal 56 | . 47 . 9 Explosive 3 | . . . 3 Electromagnetic 14 | . 14 . . Robot Hit Streak 13 | . 7 . 13 Robot Miss Streak 5 | . 5 . 3 Penetration Max . | . . . . Secondary Targets 2 | . 2 . . Max Gunslinging Chain 1 | . 1 . . Shots Hit Robots 92 | . 31 . 61 Core Hits 50 | . 17 . 33 Critical Kills 1 | . . . 1 Critical Parts Destroyed 1 | . . . 1 Critical Strikes 4 | . 1 . 3 Burn 2 | . 1 . 1 Destroy 2 | . . . 2 Melee Attacks . | . . . . Impact . | . . . . Slashing . | . . . . Piercing . | . . . . Sneak Attacks . | . . . . Combat Hostiles . | . . . . Follow-up Attacks . | . . . . Damage Inflicted 1922 | . 403 . 1519 Guns 1291 | . 400 . 891 Cannons . | . . . . Explosions 615 | . . . 615 Melee . | . . . . Ramming 16 | . 3 . 13 Kinetic 854 | . . . 854 Thermal 622 | . 321 . 301 Explosive 351 | . . . 351 Electromagnetic 79 | . 79 . . Impact . | . . . . Slashing . | . . . . Piercing . | . . . . Highest Corruption . | . . . . Average Corruption . | . . . . Corruption Purged . | . . . . Corruption Blocked . | . . . . Overload Shots . | . . . . Overflow Damage 69 | . . . 69 Projectiles . | . . . . Explosions 69 | . . . 69 Melee . | . . . . Knockbacks . | . . . . Impact . | . . . . Kinetic . | . . . . Secondary . | . . . . Self-Inflicted Damage 157 | . . . 157 Shots 4 | . . . 4 Rammed 4 | . . . 4 Targets Rammed 5 | . 1 . 4 Kicked 1 | . 1 . . Crushed . | . . . . Highest Temperature 447 | . 447 . 60 Average Temperature 119 | . 161 . 19 Received Heat Transfer 483 | . 120 . 363 Effects 3 | . 3 . . Shutdowns 2 | . 2 . . Energy Bleed 1 | . 1 . . Siege Activations . | . . . . Robots Corrupted . | . . . . Combat Hostiles . | . . . . Parts Fried . | . . . . Impact Corruptions . | . . . . Robots Melted . | . . . . Combat Hostiles . | . . . . Parts Melted 1 | . 1 . . Heat Transferred 1371 | . 1036 . 335 Parts Sabotaged . | . . . . Parts Stolen . | . . . . Parts Stripped . | . . . . Power Chain Reactions . | . . . . Alert | -11 -10 -10 -9 ------- Run | Yrd Mat Min Mat Peak Influence 370 | . 272 105 370 Initial 105 | . . 105 40 Average 126 | . 122 105 156 Maximum Alert Level 1 | . 1 . 1 Low Security (%) 77 | 100 73 100 69 Level 1 22 | . 26 . 30 Level 2 . | . . . . Level 3 . | . . . . Level 4 . | . . . . Level 5 . | . . . . High Security . | . . . . Max Security . | . . . . Squads Dispatched 5 | . 2 . 3 Investigation 1 | . . . 1 Extermination . | . . . . Reinforcement 4 | . 2 . 2 Assault . | . . . . Garrison . | . . . . Intercept . | . . . . Searches Triggered . | . . . . Construction Impeded . | . . . . Haulers Reinforced . | . . . . Active Scanning Responses . | . . . . Cargo Convoy Interrupts . | . . . . Stealth | -11 -10 -10 -9 --------- Run | Yrd Mat Min Mat Distress Signals 1 | . . . 1 Communications Jammed . | . . . . Distress Signals . | . . . . Times Spotted 51 | . 21 . 30 Peak Tracking Total 7 | . 5 . 7 Tactical Retreats 5 | . 3 . 2 Traps | -11 -10 -10 -9 ------- Run | Yrd Mat Min Mat Traps Triggered 1 | . . . 1 Indirectly . | . . . . Trap Hack Attempts . | . . . . Triggered . | . . . . Disarmed . | . . . . Reprogrammed . | . . . . Reused . | . . . . Traps Extracted . | . . . . Installed . | . . . . Triggered . | . . . . Machines | -11 -10 -10 -9 ---------- Run | Yrd Mat Min Mat Machines Disabled 5 | . 1 . 4 Max in Single Turn 2 | . 1 . 2 Machines Repaired . | . . . . Machines Dismantled . | . . . . Machines Sabotaged . | . . . . Overloaded Fab Kills . | . . . . Hacking | -11 -10 -10 -9 --------- Run | Yrd Mat Min Mat Machines Accessed 5 | . 3 . 2 Terminals 5 | . 3 . 2 Fabricators . | . . . . Repair Stations . | . . . . Recycling Units . | . . . . Scanalyzers . | . . . . Garrison Access . | . . . . Total Hacks 10 | . 5 . 5 Successful 5 | . 3 . 2 Failed 5 | . 2 . 3 Catastrophic 1 | . . . 1 Database Lockouts . | . . . . Manual . | . . . . Terminals 10 | . 5 . 5 Fabricators . | . . . . Repair Stations . | . . . . Recycling Units . | . . . . Scanalyzers . | . . . . Garrison Access . | . . . . Terminal Hacks 5 | . 3 . 2 Unreport Threat 1 | . . . 1 Dispatch Records 1 | . 1 . . Recall Investigation 1 | . 1 . . Zone Layout 2 | . 1 . 1 Fabricator Hacks . | . . . . Repair Station Hacks . | . . . . Recycling Unit Hacks . | . . . . Scanalyzer . | . . . . Garrison Access Hacks . | . . . . Unauthorized Hacks . | . . . . Terminals . | . . . . Fabricators . | . . . . Repair Stations . | . . . . Recycling Units . | . . . . Scanalyzers . | . . . . Garrison Access . | . . . . Data Cores Recovered . | . . . . Used . | . . . . Hacking Detections 4 | . 2 . 2 Full Trace Events 1 | . 1 . . Feedback Events . | . . . . Feedback Blocked . | . . . . Robot Schematics Acquired . | . . . . Robots Built . | . . . . Authchips . | . . . . Time . | . . . . Total Robot Build Rating . | . . . . Part Schematics Acquired . | . . . . Parts Built . | . . . . Authchips . | . . . . Time . | . . . . Total Part Build Rating . | . . . . Parts Repaired . | . . . . Time . | . . . . Parts Recycled . | . . . . Recycled Matter . | . . . . Retrieved Matter . | . . . . Retrieved Components . | . . . . Parts Scanalyzed . | . . . . Part Schematics Acquired . | . . . . Parts Damaged . | . . . . Bothacking | -11 -10 -10 -9 ------------ Run | Yrd Mat Min Mat Used RIF Installer . | . . . . Robots Hacked . | . . . . Non-combat . | . . . . Combat . | . . . . Robot Hacks Applied . | . . . . Relay Couplers Released . | . . . . Fabnet Peak Effective % . | . . . . Robots Rewired . | . . . . Allies Hacked . | . . . . Hacks Repelled . | . . . . Allies | -11 -10 -10 -9 -------- Run | Yrd Mat Min Mat Total Allies . | . . . . Largest Group . | . . . . Highest-Rated Group . | . . . . Highest-Rated Ally . | . . . . Total Orders . | . . . . Ally Attacks . | . . . . Total Damage . | . . . . Kills . | . . . . Allies Corrupted . | . . . . Allies Melted . | . . . . Intel | -11 -10 -10 -9 ------- Run | Yrd Mat Min Mat Robot Analysis Total . | . . . . Derelict Logs Recovered . | . . . . Drone Launches . | . . . . Drone Recoveries . | . . . . Exploration | -11 -10 -10 -9 ------------- Run | Yrd Mat Min Mat Turns Passed 1373 | 72 597 194 510 Spaces Moved 909 | 53 386 161 309 Core 23 | 6 . . 17 Treads . | . . . . Legs 683 | 47 386 161 89 Wheels 203 | . . . 203 Hover . | . . . . Flight . | . . . . Fastest Speed 50 | 50 120 120 86 Average Speed 114 | 112 120 120 103 Slowest Speed 250 | 120 120 120 250 Overloaded Moves . | . . . . Propulsion Burnouts . | . . . . Robots Hopped . | . . . . Cave-ins Triggered . | . . . . Exploration Rate (%) 26 | 4 45 30 26 Regions Visited 3 Branch Regions 1 Pre-discovered Areas . | . . . . Known Exits Taken . | . . . . Unknown Exits Taken 3 | 1 1 1 . Scrap Searched 1 | . . 1 . Spaces Dug . | . . . . Terrain Destroyed 32 | . . . 32 Melee . | . . . . Projectile . | . . . . AOE 32 | . . . 32 Terrain Rammed . | . . . . Walls Destroyed . | . . . . Machines Disabled . | . . . . Actions | -11 -10 -10 -9 --------- Run | Yrd Mat Min Mat Total 1102 | 62 457 162 421 Wait 69 | . 30 . 39 Move 906 | 52 385 160 309 Hop . | . . . . Pick Up 11 | 4 3 2 2 Fast Attach 10 | 6 1 . 3 Attach 10 | . 3 . 7 Detach . | . . . . Swap 4 | . 2 . 2 Drop 5 | . 1 . 4 Fire 82 | . 31 . 51 Melee . | . . . . Ram 4 | . . . 4 Kick 1 | . 1 . . Crush . | . . . . Escape Stasis . | . . . . Rewire . | . . . . Trap . | . . . . Miscellaneous . | . . . . Route ------- -11/Scrapyard -10/Materials -10/Mines -9/Materials (discovered 1 exit: [*Min]) History --------- Turn | Location | Event 7 | -11/Scrapyard | Discovered new exit (range 15) 73 | -11/Scrapyard | Entered Materials 300 | -10/Materials | Build established: Mutant 406 | -10/Materials | Discovered new exit (range 14) 670 | -10/Materials | Entered Mines 676 | -10/Mines | Discovered new exit (range 6) 682 | -10/Mines | Received a Rocket Launcher from a helpful Derelict 701 | -10/Mines | Found DCF Scrap (12 items) 805 | -10/Mines | Assembled infested the area 864 | -10/Mines | Entered Materials 864 | -9/Materials | Evolved 2 slots: Propulsion x1, Utility x1 1348 | -9/Materials | Discovered new exit (range 15) 1356 | -9/Materials | Core integrity fell below 50% 1374 | -9/Materials | Self-destructed Last Messages --------------- 01366_ U-05 Engineer lays Concrete. 01366_ Grenade Launcher destroyed. 01366_ U-05 Engineer lays Concrete. 01367_ K-01 Serf collects debris. 01367_ U-05 Engineer lays Concrete. 01368_ U-05 Engineer builds a Wall. 01368_ U-05 Engineer lays Concrete. 01369_ Matter Pump disabled. 01369_ U-05 Engineer lays Concrete. 01370_ Fusion Modulator explodes. 01370_ Rocket Launcher destroyed. 01370_ Destroyed Rocket Launcher. 01370_ Broken Com. Wheel destroyed. 01370_ Destroyed Broken Com. Wheel. 01370_ Destroyed Wheel. 01370_ U-05 Engineer destroyed. 01370_ G-34 Mercenary destroyed. 01370_ U-05 Engineer builds a Wall. 01371_ W-16 Scout sends out distress signal. 01374_ T-07 Excavator is excavating. Map ----- +----------------------------------------------------+ | ## #### ## """ ### #????????????????? | | ## #### # """ * ### #????????????????? | | ## #### ##%""" ### #????????????????? | | ##+#### ## #########+###????????????????? | | ### ## """ ##??#?# #????????????????? | | "" ### ## T" ##????# T ????????????????? | | "" ###[ ## """ ###??## "" ????????????????? | | "" ###= ## ##?#??# ????????????????? | | % + [ % ################# #????????????????? | | "" ### ################### ###????????????????? | | ""% ### ## ##??? ? # ?????????? | | "" %### ## ##????? # ?????????? | | + """ ## ##???? # ?????????? | | ##### """ ## #### + ?????????? | | """ ## #### # ?????????? | | ## # # # ?????????? | | " ######### ;; g # ?????????? | | " #"" " ""# """ ;; [ g"# ?????????? | | " # " " " # w "" k; =% "# ?????????? | | # # %| "# ?????????? | | "# ?????????? | | " ?? < k % * "# ??????? | | " ? s s Y [ [ "" ?????? | | " ##### ##a """* ! ! "# ?????????? | | ############### """=|# "# ?????????? | | # ??? # + @u# ## ?????????? | | " ????????????? # ############ ?????????? | | " ?????????????? # """ ############??????????? | | ???????????????? # """ ##????????????????????? | | ???????????????? # """ ????????????????????? | | ???????????????? # ?????????????????????? | | ????????????????## ????????????????????? | | ????????????????## ? ????????????????????? | | ?????????????????????##### ??????????????????? | | ????????????????????? ####t##??????????????????? | | ?????????????????????????######??????????????????? | | ???????????????????????????####??????????????????? | | ?????????????????????????????????????????????????? | | ?????????????????????????????????????????????????? | | ?????????????????????????????????????????????????? | | ?????????????????????????????????????????????????? | | ?????????????????????????????????????????????????? | | ?????????????????????????????????????????????????? | | ?????????????????????????????????????????????????? | | ?????????????????????????????????????????????????? | | ?????????????????????????????????????????????????? | | ?????????????????????????????????????????????????? | | ?????????????????????????????????????????????????? | | ?????????????????????????????????????????????????? | | ?????????????????????????????????????????????????? | +----------------------------------------------------+ Best States ------------- Heat Dissipation 28 Energy Generation 14 Energy Capacity 250 Matter Stores 300 Matter Capacity 300 Sight Range 16 Terrain Scan Range 16 Terrain Scan Density 10 Evasion (%) 55 Targeting Accuracy 5 Item Schematics ----------------- None Robot Schematics ------------------ None Fabricated ------------ Nothing Alien Tech Used ----------------- None Achievements -------------- None Challenges ------------ None Game ------ Seed TeleporterAluminumMegatreads Manual? 0 Play Time 00:19:12 Cumulative 14.2 hours Start 2024.11.16 @ 13:44:15 End 2024.11.16 @ 13:59:53 Sessions 1 Manual Loads 0 Difficulty Rogue Special Mode None Game No. 28 Rogue 25 Adventurer 3 Explorer 0 Win Type - Total 0 Types 0/0/0/0/0/0/0/0/0 Lore% 4 Gallery% 16 Achievement% 13 Wizard Run 0 Options --------- Layout 1 ASCII 0 Keyboard 0 Movement Arrows Keybinds 0 Fullscreen 1 Font 24/Terminus Map View 50x35 Zoom Use 0% Tactical HUD 1 Map Filters NONE Filters NONE Steam 1 RUN: aba019e3-e09a-4383-bb55-651fc9b1c4a6